[Event "SixDays Budapest IM-B 09-2024"]
[Site "Budapest"]
[Date "2024.09.27"]
[Round "1"]
[White "Pribelszky, Bence Daniel"]
[Black "Valkova, Angelika"]
[Result "1-0"]
[ECO "A13"]
[WhiteElo "2408"]
[BlackElo "2068"]
[Annotator "ChessBase"]
[PlyCount "83"]
[EventDate "2024.09.24"]
[EventType "tourn"]
[EventCountry "HUN"]
[SourceTitle "playchess.com"]
[Source "ChessBase"]
[SourceQuality "1"]
[TimeControl "5400+30"]

1. Nf3 {[%emt 0:05:21]} d5 {[%emt 0:00:05]} 2. c4 {[%emt 0:00:07]} e6 {[%emt 0:00:26]} 3. g3 {[%emt 0:00:06]} d4 {[%emt 0:00:49]} 4. e3 {[%emt 0:00:19]} Nc6 {[%emt 0:00:32]} 5. exd4 {[%emt 0:04:17]} Nxd4 {[%emt 0:00:08]} 6. Bg2 {[%emt 0:01:16]} Bc5 {[%emt 0:01:07]} 7. O-O {[%emt 0:00:36]} Nf6 {[%emt 0:04:56]} 8. d3 {[%emt 0:26:16]} Bd7 {[%emt 0:15:32]} 9. Nxd4 {[%emt 0:04:04]} Bxd4 {[%emt 0:00:08]} 10. Bxb7 {[%emt 0:00:03]} Rb8 {[%emt 0:00:09]} 11. Qf3 {[%emt 0:10:10]} c5 {[%emt 0:02:41]} 12. Nc3 {[%emt 0:08:05]} Qb6 {[%emt 0:04:33]} 13. Be4 {[%emt 0:00:06]} O-O {[%emt 0:00:57]} 14. Qe2 {[%emt 0:18:09]} Nxe4 {[%emt 0:02:03]} 15. Nxe4 {[%emt 0:00:03]} Bc6 {[%emt 0:07:42]} 16. Rb1 {[%emt 0:00:53]} f5 {[%emt 0:02:41]} 17. Ng5 {[%emt 0:01:41]} h6 {[%emt 0:04:53]} 18. Nf3 {[%emt 0:03:22]} Bf6 {[%emt 0:01:37]} 19. Qxe6+ {[%emt 0:01:59]} Kh8 {[%emt 0:03:45]} 20. Ne5 {[%emt 0:00:26]} Bxe5 {[%emt 0:01:33]} 21. Qxe5 {[%emt 0:00:02]} Rbe8 {[%emt 0:00:33]} 22. Qc3 {[%emt 0:02:48]} Bf3 {[%emt 0:02:39]} 23. d4 {[%emt 0:02:36]} Be2 {[%emt 0:03:47]} 24. dxc5 {[%emt 0:00:26]} Qg6 {[%emt 0:01:50]} 25. Bf4 {[%emt 0:01:27]} Re4 {[%emt 0:05:37]} 26. Rfe1 {[%emt 0:01:18]} Rxc4 {[%emt 0:01:09]} 27. Qd2 {[%emt 0:02:59]} Bf3 {[%emt 0:01:06]} 28. Qd6 {[%emt 0:00:32]} Rf6 {[%emt 0:18:52]} 29. Qd8+ {[%emt 0:00:07]} Kh7 {[%emt 0:00:03]} 30. Re8 {[%emt 0:00:12]} Qf7 {[%emt 0:00:26]} 31. Re7 {[%emt 0:03:11]} Qh5 {[%emt 0:06:25]} 32. Be5 {[%emt 0:00:16]} Rg6 {[%emt 0:00:56]} 33. Re8 {[%emt 0:03:15]} Rc6 {[%emt 0:06:45]} 34. Rh8+ {[%emt 0:00:17]} Kg6 {[%emt 0:00:05]} 35. Rg8 {[%emt 0:00:44]} f4 {[%emt 0:00:54]} 36. Qe8+ {[%emt 0:00:28]} Kf5 {[%emt 0:00:25]} 37. Rf8+ {[%emt 0:00:10]} Ke4 {[%emt 0:00:40]} 38. Rxf4+ {[%emt 0:00:28]} Kd3 {[%emt 0:00:20]} 39. Qd7+ {[%emt 0:00:51]} Kc2 {[%emt 0:00:19]} 40. Rxc4+ {[%emt 0:00:12]} Kxb1 {[%emt 0:00:06]} 41. Qd3+ {[%emt 0:00:11]} Kxa2 {[%emt 0:00:15]} 42. Ra4# {[%emt 0:00:11]} 1-0

[Event "SixDays Budapest IM-B 09-2024"]
[Site "Budapest"]
[Date "2024.09.27"]
[Round "1"]
[White "Polyik, Peter"]
[Black "Goldbeck, Lars"]
[Result "0-1"]
[ECO "A06"]
[WhiteElo "2304"]
[BlackElo "2359"]
[Annotator "ChessBase"]
[PlyCount "150"]
[EventDate "2024.09.24"]
[EventType "tourn"]
[EventCountry "HUN"]
[SourceTitle "playchess.com"]
[Source "ChessBase"]
[SourceQuality "1"]
[TimeControl "5400+30"]

1. Nf3 {[%emt 0:02:14]} d5 {[%emt 0:00:07]} 2. g3 {[%emt 0:00:06]} Nd7 {[%emt 0:01:28]} 3. d4 {[%emt 0:00:07]} Nb6 {[%emt 0:00:04]} 4. Nc3 {[%emt 0:00:06]} Bf5 {[%emt 0:00:48]} 5. Nh4 {[%emt 0:01:21]} e6 {[%emt 0:00:31]} 6. Nxf5 {[%emt 0:02:18]} exf5 {[%emt 0:00:35]} 7. Bg2 {[%emt 0:00:11]} Be7 {[%emt 0:08:54]} 8. Qd3 {[%emt 0:06:16]} g6 {[%emt 0:00:54]} 9. f3 {[%emt 0:06:05]} Bf6 {[%emt 0:08:40]} 10. Bf4 {[%emt 0:02:15]} c6 {[%emt 0:00:57]} 11. O-O-O {[%emt 0:03:04]} Bg5 {[%emt 0:13:50]} 12. Qe3+ {[%emt 0:13:44]} Be7 {[%emt 0:00:01]} 13. Kb1 {[%emt 0:00:28]} g5 {[%emt 0:04:50]} 14. Bxg5 {[%emt 0:06:31]} Nc4 {[%emt 0:00:04]} 15. Bxe7 {[%emt 0:00:06]} Nxe3 {[%emt 0:00:10]} 16. Bxd8 {[%emt 0:00:05]} Nxd1 {[%emt 0:00:05]} 17. Bg5 {[%emt 0:00:33]} Nxc3+ {[%emt 0:02:50]} 18. bxc3 {[%emt 0:00:05]} f6 {[%emt 0:00:14]} 19. Bf4 {[%emt 0:06:15]} Ne7 {[%emt 0:02:03]} 20. e4 {[%emt 0:07:35]} fxe4 {[%emt 0:05:06]} 21. fxe4 {[%emt 0:00:06]} dxe4 {[%emt 0:00:10]} 22. Bxe4 {[%emt 0:00:04]} Nd5 {[%emt 0:00:22]} 23. Bd2 {[%emt 0:00:44]} b5 {[%emt 0:07:26]} 24. a4 {[%emt 0:07:41]} a6 {[%emt 0:03:32]} 25. Rf1 {[%emt 0:01:47]} O-O {[%emt 0:02:11]} 26. Rf5 {[%emt 0:05:42]} Rad8 {[%emt 0:00:58]} 27. a5 {[%emt 0:01:21]} Rd6 {[%emt 0:17:54]} 28. Bd3 {[%emt 0:06:26]} Re6 {[%emt 0:07:58]} 29. Rh5 {[%emt 0:06:02]} Rf7 {[%emt 0:00:55]} 30. c4 {[%emt 0:00:30]} Ne3 {[%emt 0:01:29]} 31. d5 {[%emt 0:01:49]} cxd5 {[%emt 0:00:33]} 32. cxd5 {[%emt 0:00:16]} Re8 {[%emt 0:00:34]} 33. Bxe3 {[%emt 0:11:14]} Rxe3 {[%emt 0:00:38]} 34. Rh4 {[%emt 0:00:35]} Rd7 {[%emt 0:04:05]} 35. Rd4 {[%emt 0:00:15]} Kf8 {[%emt 0:02:23]} 36. Kb2 {[%emt 0:00:19]} Re5 {[%emt 0:01:02]} 37. c4 {[%emt 0:01:11]} bxc4 {[%emt 0:00:16]} 38. Bxc4 {[%emt 0:00:04]} Ke7 {[%emt 0:00:31]} 39. Rf4 {[%emt 0:01:49]} Re3 {[%emt 0:01:55]} 40. Rf5 {[%emt 0:01:13]} Re5 {[%emt 0:01:03]} 41. Rf4 {[%emt 0:00:05]} Rdxd5 {[%emt 0:01:32]} 42. Bxd5 {[%emt 0:00:05]} Rxd5 {[%emt 0:00:01]} 43. Kc3 {[%emt 0:02:29]} Rxa5 {[%emt 0:00:18]} 44. Kd3 {[%emt 0:00:26]} Ra3+ {[%emt 0:00:34]} 45. Ke2 {[%emt 0:00:05]} Ra5 {[%emt 0:00:39]} 46. Kf3 {[%emt 0:00:21]} Ke6 {[%emt 0:00:29]} 47. Re4+ {[%emt 0:00:52]} Re5 {[%emt 0:00:33]} 48. Rb4 {[%emt 0:00:37]} Rb5 {[%emt 0:00:37]} 49. Re4+ {[%emt 0:00:04]} Re5 {[%emt 0:00:47]} 50. Rb4 {[%emt 0:00:04]} Kf5 {[%emt 0:00:37]} 51. Rf4+ {[%emt 0:00:29]} Kg6 {[%emt 0:00:11]} 52. Rg4+ {[%emt 0:00:04]} Rg5 {[%emt 0:00:08]} 53. Rc4 {[%emt 0:00:06]} a5 {[%emt 0:00:29]} 54. Rc7 {[%emt 0:00:21]} Rf5+ {[%emt 0:00:48]} 55. Kg2 {[%emt 0:00:40]} Rd5 {[%emt 0:00:13]} 56. Ra7 {[%emt 0:00:15]} Rc5 {[%emt 0:00:30]} 57. Kf3 {[%emt 0:00:05]} h5 {[%emt 0:00:31]} 58. h4 {[%emt 0:02:44]} Kf5 {[%emt 0:01:26]} 59. Rh7 {[%emt 0:00:27]} Ke6 {[%emt 0:00:43]} 60. Ra7 {[%emt 0:00:17]} Ke5 {[%emt 0:00:40]} 61. Re7+ {[%emt 0:00:36]} Kd4 {[%emt 0:00:25]} 62. Kf4 {[%emt 0:01:04]} Kc3 {[%emt 0:00:35]} 63. Ra7 {[%emt 0:00:38]} Kb4 {[%emt 0:00:17]} 64. Kf3 {[%emt 0:00:28]} a4 {[%emt 0:00:18]} 65. Rb7+ {[%emt 0:00:15]} Rb5 {[%emt 0:00:35]} 66. Ra7 {[%emt 0:00:01]} Rf5+ {[%emt 0:00:25]} 67. Ke4 {[%emt 0:00:23]} Ra5 {[%emt 0:00:13]} 68. Rb7+ {[%emt 0:00:07]} Kc5 {[%emt 0:00:38]} 69. Rf7 {[%emt 0:01:44]} a3 {[%emt 0:00:37]} 70. Rxf6 {[%emt 0:00:16]} Ra4+ {[%emt 0:00:56]} 71. Ke5 {[%emt 0:00:35]} a2 {[%emt 0:00:09]} 72. Rf1 {[%emt 0:00:05]} a1=Q+ {[%emt 0:00:05]} 73. Rxa1 {[%emt 0:00:03]} Rxa1 {[%emt 0:00:04]} 74. Kf4 {[%emt 0:00:07]} Kd6 {[%emt 0:00:19]} 75. g4 {[%emt 0:00:12]} Ra4+ {[%emt 0:00:04]} 0-1

[Event "SixDays Budapest IM-B 09-2024"]
[Site "Budapest"]
[Date "2024.09.27"]
[Round "1"]
[White "Li, Xueyi"]
[Black "Tippa, Aswath Srisai"]
[Result "0-1"]
[ECO "E12"]
[WhiteElo "2187"]
[BlackElo "1648"]
[Annotator "ChessBase"]
[PlyCount "64"]
[EventDate "2024.09.24"]
[EventType "tourn"]
[EventCountry "HUN"]
[SourceTitle "playchess.com"]
[Source "ChessBase"]
[SourceQuality "1"]
[TimeControl "5400+30"]

1. d4 {[%emt 0:00:04]} Nf6 {[%emt 0:08:00]} 2. c4 {[%emt 0:00:11]} e6 {[%emt 0:00:15]} 3. Nf3 {[%emt 0:00:10]} b6 {[%emt 0:00:54]} 4. Bf4 {[%emt 0:00:36]} Bb4+ {[%emt 0:01:06]} 5. Nfd2 {[%emt 0:00:24]} Nh5 {[%emt 0:02:14]} 6. Bg3 {[%emt 0:00:54]} Bb7 {[%emt 0:01:54]} 7. e3 {[%emt 0:00:38]} Nxg3 {[%emt 0:00:55]} 8. hxg3 {[%emt 0:00:08]} c5 {[%emt 0:02:17]} 9. a3 {[%emt 0:01:43]} Bxd2+ {[%emt 0:02:37]} 10. Qxd2 {[%emt 0:05:02]} cxd4 {[%emt 0:03:29]} 11. Qxd4 {[%emt 0:00:32]} O-O {[%emt 0:02:35]} 12. Bd3 {[%emt 0:08:06]} f5 {[%emt 0:03:47]} 13. g4 {[%emt 0:02:29]} Nc6 {[%emt 0:06:10]} 14. Qd6 {[%emt 0:07:22]} Qf6 {[%emt 0:02:12]} 15. Nc3 {[%emt 0:03:00]} Qe5 {[%emt 0:00:26]} 16. Qxe5 {[%emt 0:12:46]} Nxe5 {[%emt 0:00:10]} 17. Bf1 {[%emt 0:02:40]} fxg4 {[%emt 0:00:14]} 18. Rh5 {[%emt 0:01:20]} Rf5 {[%emt 0:00:48]} 19. Rxf5 {[%emt 0:00:46]} exf5 {[%emt 0:00:09]} 20. Rd1 {[%emt 0:04:51]} Kf7 {[%emt 0:00:21]} 21. Nb5 {[%emt 0:00:25]} Bc6 {[%emt 0:01:20]} 22. Nd4 {[%emt 0:06:20]} Kf6 {[%emt 0:00:21]} 23. Nxc6 {[%emt 0:02:17]} dxc6 {[%emt 0:00:11]} 24. Be2 {[%emt 0:00:36]} Ke7 {[%emt 0:03:51]} 25. f4 {[%emt 0:06:13]} gxf3 {[%emt 0:00:20]} 26. gxf3 {[%emt 0:00:08]} Rd8 {[%emt 0:00:17]} 27. Rb1 {[%emt 0:04:34]} g5 {[%emt 0:01:03]} 28. Kf2 {[%emt 0:05:03]} Kf6 {[%emt 0:03:26]} 29. Rh1 {[%emt 0:05:06]} Rd2 {[%emt 0:00:39]} 30. Rh6+ {[%emt 0:02:56]} Kg7 {[%emt 0:00:27]} 31. Re6 {[%emt 0:02:27]} Nd3+ {[%emt 0:00:08]} 32. Kf1 {[%emt 0:01:23]} Nc1 {[%emt 0:00:07]} 0-1

[Event "SixDays Budapest IM-B 09-2024"]
[Site "Budapest"]
[Date "2024.09.27"]
[Round "1"]
[White "Nissinen, Niilo Man"]
[Black "Rodgers, Jack"]
[Result "1/2-1/2"]
[ECO "B27"]
[WhiteElo "2159"]
[BlackElo "2110"]
[Annotator "ChessBase"]
[PlyCount "160"]
[EventDate "2024.09.24"]
[EventType "tourn"]
[EventCountry "HUN"]
[SourceTitle "playchess.com"]
[Source "ChessBase"]
[SourceQuality "1"]
[TimeControl "5400+30"]

1. e4 {[%emt 0:00:03]} c5 {[%emt 0:02:28]} 2. Nf3 {[%emt 0:00:08]} g6 {[%emt 0:00:07]} 3. c3 {[%emt 0:00:09]} d5 {[%emt 0:01:06]} 4. e5 {[%emt 0:00:16]} d4 {[%emt 0:03:48]} 5. cxd4 {[%emt 0:06:50]} cxd4 {[%emt 0:00:12]} 6. Bb5+ {[%emt 0:02:22]} Bd7 {[%emt 0:10:07]} 7. e6 {[%emt 0:03:52]} fxe6 {[%emt 0:03:23]} 8. Nxd4 {[%emt 0:00:32]} Bxb5 {[%emt 0:03:53]} 9. Nxb5 {[%emt 0:00:08]} Nc6 {[%emt 0:00:49]} 10. O-O {[%emt 0:02:54]} Bg7 {[%emt 0:02:46]} 11. N1c3 {[%emt 0:09:56]} a6 {[%emt 0:01:09]} 12. Na3 {[%emt 0:00:13]} Nh6 {[%emt 0:01:34]} 13. Qe2 {[%emt 0:05:59]} Nd4 {[%emt 0:05:07]} 14. Qe4 {[%emt 0:00:48]} b5 {[%emt 0:00:44]} 15. Nc2 {[%emt 0:11:00]} Nhf5 {[%emt 0:01:21]} 16. Nxd4 {[%emt 0:00:49]} Nxd4 {[%emt 0:00:48]} 17. d3 {[%emt 0:06:20]} b4 {[%emt 0:03:26]} 18. Ne2 {[%emt 0:09:46]} Qd5 {[%emt 0:00:53]} 19. Nxd4 {[%emt 0:08:07]} Qxe4 {[%emt 0:02:31]} 20. dxe4 {[%emt 0:00:06]} Bxd4 {[%emt 0:00:04]} 21. Rb1 {[%emt 0:02:40]} O-O {[%emt 0:03:19]} 22. Be3 {[%emt 0:02:37]} Bxe3 {[%emt 0:01:11]} 23. fxe3 {[%emt 0:00:07]} Rxf1+ {[%emt 0:00:09]} 24. Kxf1 {[%emt 0:04:27]} Rc8 {[%emt 0:00:16]} 25. Re1 {[%emt 0:00:17]} Kg7 {[%emt 0:01:14]} 26. Re2 {[%emt 0:02:18]} Kf6 {[%emt 0:01:16]} 27. Kf2 {[%emt 0:00:38]} Ke5 {[%emt 0:00:52]} 28. Rd2 {[%emt 0:00:56]} a5 {[%emt 0:00:35]} 29. Kf3 {[%emt 0:00:51]} Rc1 {[%emt 0:02:43]} 30. b3 {[%emt 0:04:07]} Rf1+ {[%emt 0:01:31]} 31. Ke2 {[%emt 0:00:27]} Rh1 {[%emt 0:00:29]} 32. Kf3 {[%emt 0:03:26]} h5 {[%emt 0:05:03]} 33. Rc2 {[%emt 0:01:08]} Kd6 {[%emt 0:04:43]} 34. h3 {[%emt 0:01:39]} Rf1+ {[%emt 0:04:27]} 35. Ke2 {[%emt 0:00:10]} Ra1 {[%emt 0:00:45]} 36. Kd3 {[%emt 0:02:53]} g5 {[%emt 0:01:35]} 37. Ke2 {[%emt 0:04:53]} Rb1 {[%emt 0:01:13]} 38. Kf3 {[%emt 0:00:30]} Rf1+ {[%emt 0:01:26]} 39. Ke2 {[%emt 0:00:06]} Rf8 {[%emt 0:01:32]} 40. Rc4 {[%emt 0:02:30]} e5 {[%emt 0:06:21]} 41. Rc1 {[%emt 0:00:34]} g4 {[%emt 0:01:22]} 42. hxg4 {[%emt 0:02:11]} hxg4 {[%emt 0:00:03]} 43. Rf1 {[%emt 0:00:38]} Rc8 {[%emt 0:00:22]} 44. Rd1+ {[%emt 0:00:28]} Ke6 {[%emt 0:00:06]} 45. Rd5 {[%emt 0:00:44]} Rc2+ {[%emt 0:02:52]} 46. Rd2 {[%emt 0:00:05]} Rc5 {[%emt 0:02:06]} 47. Kf2 {[%emt 0:00:48]} Rc3 {[%emt 0:00:17]} 48. Ke2 {[%emt 0:00:40]} a4 {[%emt 0:06:00]} 49. bxa4 {[%emt 0:00:30]} Ra3 {[%emt 0:00:09]} 50. Kf2 {[%emt 0:00:59]} Rxa4 51. Kg3 {[%emt 0:00:48]} b3 {[%emt 0:01:19]} 52. axb3 {[%emt 0:00:07]} Rxe4 {[%emt 0:00:04]} 53. Rb2 {[%emt 0:00:57]} Rb4 {[%emt 0:04:30]} 54. e4 {[%emt 0:00:16]} Rxe4 {[%emt 0:01:12]} 55. b4 {[%emt 0:00:02]} Kd6 {[%emt 0:00:49]} 56. b5 {[%emt 0:00:04]} Kc7 {[%emt 0:00:05]} 57. b6+ {[%emt 0:00:03]} Kb7 {[%emt 0:00:02]} 58. Kh4 {[%emt 0:01:38]} Rf4 {[%emt 0:01:32]} 59. g3 {[%emt 0:00:28]} Re4 {[%emt 0:02:36]} 60. Rb5 {[%emt 0:00:34]} Re1 {[%emt 0:03:22]} 61. Kxg4 {[%emt 0:00:22]} e4 {[%emt 0:00:13]} 62. Kf4 {[%emt 0:00:59]} e3 {[%emt 0:00:18]} 63. Kf3 {[%emt 0:00:34]} Rg1 {[%emt 0:03:18]} 64. Re5 {[%emt 0:00:31]} Kxb6 {[%emt 0:00:26]} 65. Rxe7 {[%emt 0:00:09]} Rf1+ {[%emt 0:00:29]} 66. Ke2 {[%emt 0:00:06]} Rf6 {[%emt 0:01:05]} 67. Kxe3 {[%emt 0:01:10]} Kc6 {[%emt 0:00:19]} 68. Re4 {[%emt 0:00:34]} Kd6 {[%emt 0:00:29]} 69. Rf4 {[%emt 0:00:31]} Rg6 {[%emt 0:00:39]} 70. g4 {[%emt 0:00:27]} Rh6 {[%emt 0:00:53]} 71. Kf3 {[%emt 0:00:09]} Rh3+ {[%emt 0:00:27]} 72. Kg2 {[%emt 0:00:05]} Ra3 {[%emt 0:00:27]} 73. Re4 {[%emt 0:00:57]} Rb3 {[%emt 0:00:23]} 74. Kf2 {[%emt 0:00:17]} Ra3 {[%emt 0:00:22]} 75. Re1 {[%emt 0:00:19]} Rb3 {[%emt 0:00:11]} 76. Kg2 Ra3 {[%emt 0:00:12]} 77. Kh2 {[%emt 0:01:10]} Rb3 {[%emt 0:00:15]} 78. Rg1 {[%emt 0:00:56]} Ke6 {[%emt 0:00:32]} 79. Rg3 {[%emt 0:00:06]} Rxg3 {[%emt 0:01:44]} 80. Kxg3 {[%emt 0:00:05]} Kf6 {[%emt 0:00:09]} 1/2-1/2

[Event "SixDays Budapest IM-B 09-2024"]
[Site "Budapest"]
[Date "2024.09.27"]
[Round "1"]
[White "Nanditha V"]
[Black "Skytte, Rasmus"]
[Result "0-1"]
[ECO "B75"]
[WhiteElo "1903"]
[BlackElo "2348"]
[Annotator "ChessBase"]
[PlyCount "79"]
[EventDate "2024.09.24"]
[EventType "tourn"]
[EventCountry "HUN"]
[SourceTitle "playchess.com"]
[Source "ChessBase"]
[SourceQuality "1"]
[TimeControl "5400+30"]

1. e4 {[%emt 0:02:28]} c5 {[%emt 0:02:37]} 2. Nf3 {[%emt 0:00:12]} d6 {[%emt 0:00:06]} 3. d4 {[%emt 0:00:05]} cxd4 {[%emt 0:00:05]} 4. Nxd4 {[%emt 0:00:03]} Nf6 {[%emt 0:00:08]} 5. Nc3 {[%emt 0:00:02]} g6 {[%emt 0:00:10]} 6. Be3 {[%emt 0:00:14]} Bg7 {[%emt 0:00:09]} 7. f3 {[%emt 0:00:11]} a6 {[%emt 0:00:24]} 8. Bc4 {[%emt 0:00:49]} Nbd7 {[%emt 0:02:27]} 9. Qd2 {[%emt 0:00:30]} h5 {[%emt 0:01:16]} 10. O-O-O {[%emt 0:01:27]} b5 {[%emt 0:01:53]} 11. Bb3 {[%emt 0:07:19]} Nc5 {[%emt 0:01:41]} 12. Kb1 {[%emt 0:02:35]} Bd7 {[%emt 0:00:19]} 13. Qf2 {[%emt 0:07:40]} b4 {[%emt 0:04:09]} 14. Nce2 {[%emt 0:02:08]} Nxb3 {[%emt 0:04:10]} 15. cxb3 {[%emt 0:02:02]} a5 {[%emt 0:04:15]} 16. h3 {[%emt 0:03:09]} a4 {[%emt 0:07:32]} 17. bxa4 {[%emt 0:06:09]} Rxa4 {[%emt 0:01:27]} 18. g4 {[%emt 0:00:43]} O-O {[%emt 0:04:35]} 19. Bg5 {[%emt 0:01:40]} Qa5 {[%emt 0:01:12]} 20. Bxf6 {[%emt 0:03:57]} Bxf6 {[%emt 0:01:05]} 21. Nb3 {[%emt 0:01:19]} Qa6 {[%emt 0:10:05]} 22. Nec1 {[%emt 0:03:26]} Ra8 {[%emt 0:02:20]} 23. gxh5 {[%emt 0:13:00]} Rxa2 {[%emt 0:01:12]} 24. Rd2 {[%emt 0:01:51]} Ra1+ {[%emt 0:02:57]} 25. Nxa1 {[%emt 0:03:14]} Qxa1+ {[%emt 0:00:37]} 26. Kc2 {[%emt 0:00:03]} Rc8+ {[%emt 0:01:37]} 27. Kd3 {[%emt 0:01:02]} Bb5+ {[%emt 0:06:51]} 28. Ke3 {[%emt 0:00:14]} Rxc1 {[%emt 0:00:48]} 29. Rxc1 {[%emt 0:00:38]} Qxc1 {[%emt 0:00:09]} 30. f4 {[%emt 0:00:37]} Bc3 {[%emt 0:05:09]} 31. bxc3 {[%emt 0:01:11]} bxc3 {[%emt 0:00:12]} 32. hxg6 {[%emt 0:00:15]} fxg6 {[%emt 0:00:07]} 33. Qg2 {[%emt 0:01:20]} Qxd2+ {[%emt 0:00:12]} 34. Qxd2 {[%emt 0:00:09]} cxd2 {[%emt 0:00:06]} 35. Kxd2 {[%emt 0:00:04]} e5 {[%emt 0:00:22]} 36. fxe5 {[%emt 0:00:39]} dxe5 {[%emt 0:00:08]} 37. Ke3 {[%emt 0:00:13]} Kg7 {[%emt 0:00:15]} 38. Kf2 {[%emt 0:02:07]} Kh6 {[%emt 0:00:06]} 39. Kf3 {[%emt 0:00:00]} Kg5 {[%emt 0:00:13]} 40. Kg3 {[%emt 0:00:00]} 0-1

[Event "SixDays Budapest IM-B 09-2024"]
[Site "Budapest"]
[Date "2024.09.24"]
[Round "1.1"]
[White "Valkova, Angelika"]
[Black "Goldbeck, Lars"]
[Result "0-1"]
[ECO "D35"]
[WhiteElo "2068"]
[BlackElo "2359"]
[Annotator "TA"]
[PlyCount "60"]
[EventDate "2024.09.24"]
[EventType "tourn"]
[EventCountry "HUN"]
[SourceTitle "playchess.com"]
[Source "ChessBase"]
[SourceQuality "1"]
[TimeControl "5400+30"]

{[%evp 9,60,7,33,25,26,28,38,14,16,8,28,13,30,10,26,16,40,21,46,31,32,25,29,50,137,62,73,50,105,101,103,101,133,124,170,174,173,173,176,172,183,156,170,134,121,129,132,88,95,-667,-658,-29978,-29978]} 1. d4 {[%emt 0:00:03]} d5 {[%emt 0:00:13]} 2. c4 {[%emt 0:00:06]} e6 {[%emt 0:00:02]} 3. Nc3 {[%emt 0:00:10]} Nf6 {[%emt 0:00:05]} 4. cxd5 {[%emt 0:00:06]} exd5 {[%emt 0:00:03]} 5. Bg5 {[%emt 0:00:08]} Be6 {[%emt 0:00:07]} 6. e3 {[%emt 0:03:59]} Nbd7 {[%emt 0:00:10]} 7. Bd3 {[%emt 0:00:31]} c6 {[%emt 0:00:14]} 8. f4 {[%emt 0:01:14] White is slightly better.} h6 {[%emt 0:01:09]} 9. Bh4 {[%emt 0:00:11]} g5 {[%emt 0:01:34] And now ...Bg4 would win.} 10. fxg5 {[%emt 0:00:10]} Ne4 {[%emt 0:01:08]} 11. Bxe4 {[%emt 0:01:08]} hxg5 {[%emt 0:01:21] [#]} 12. Bxd5 $1 {[%emt 0:14:02]} Bxd5 {[%emt 0:01:33]} 13. Nxd5 {[%emt 0:01:43]} cxd5 {[%emt 0:00:02]} 14. Bg3 {[%emt 0:01:00]} Qa5+ {[%emt 0:00:05]} 15. Kf1 {[%emt 0:01:09]} Be7 {[%emt 0:07:09]} 16. Nf3 {[%emt 0:04:47]} Nf6 {[%emt 0:10:15]} ({Better is} 16... Qb6 $14) 17. Be5 {[%emt 0:12:19]} (17. Nxg5 $16 Rc8 18. Kg1) 17... Ng4 {[%emt 0:06:36]} 18. Qd3 {[%emt 0:00:49]} (18. Bxh8 $2 {too greedy.} Nxe3+ 19. Kf2 Nxd1+ 20. Raxd1 f6 $19 (20... Qxa2 $2 21. Rhe1 $19)) 18... Rh6 {[%emt 0:09:10]} ({Black should try} 18... Qb6 $14 19. Rb1 (19. Bxh8 Qxb2 20. Qe2 Qxa1+ 21. Ne1 Nf6 $11) 19... f6) 19. h3 $16 {[%emt 0:08:46]} Nxe5 {[%emt 0:11:22]} 20. Nxe5 {[%emt 0:00:12]} Rf6+ {[%emt 0:06:12]} 21. Ke2 {[%emt 0:00:57]} Qb6 {[%emt 0:07:52]} (21... Rb6 $16 {might work better.}) 22. b3 $18 {[%emt 0:09:24]} Re6 {[%emt 0:11:37]} 23. Rhf1 {[%emt 0:06:05][%cal Oa1c1] Black must now prevent Rac1!} Bf6 {[%emt 0:01:04]} 24. Rf5 {[%emt 0:18:15]} O-O-O {[%emt 0:03:27]} 25. Rc1+ {[%emt 0:00:45]} Kb8 {[%emt 0:00:08]} 26. Kf2 {[%emt 0:05:11]} Bxe5 {[%emt 0:01:16]} 27. dxe5 {[%emt 0:00:45]} d4 {[%emt 0:02:15]} 28. Rxf7 {[%emt 0:02:28] Hoping for exd4.} (28. Rxg5 f6 29. Rg4 dxe3+ (29... fxe5 30. Re4 $16) 30. Qxe3 Qxe3+ 31. Kxe3 Rxe5+ 32. Re4 Rh5) 28... Rxe5 {[%emt 0:01:46]} 29. exd4 {[%emt 0:00:16][%mdl 8192]} (29. e4 $16) 29... Rxd4 $19 {[%emt 0:01:01] [#] ( -> ...Rd7+)} 30. Rf8+ {[%emt 0:00:06]} Rd8+ {[%emt 0:00:03] Quite a comeback for Black.   Weighted Error Value: White=0.60/Black=0.16 (very precise) .  Loses game:     	White=1     	---        Mistake:       	White=1     	Black=3      Inaccurate:     	White=2     	Black=1      OK:         	White=8     	Black=9      Best:        	White=1     	Black=4      Brilliant:      	White=1     	---} 0-1

[Event "SixDays Budapest IM-B 09-2024"]
[Site "Budapest"]
[Date "2024.09.24"]
[Round "1.2"]
[White "Nissinen, Niilo Man"]
[Black "Nanditha V"]
[Result "1-0"]
[ECO "B12"]
[WhiteElo "2159"]
[BlackElo "1903"]
[Annotator "RC"]
[PlyCount "55"]
[EventDate "2024.09.24"]
[EventType "tourn"]
[EventCountry "HUN"]
[SourceTitle "playchess.com"]
[Source "ChessBase"]
[SourceQuality "1"]
[TimeControl "5400+30"]

1. e4 {[%emt 0:01:06]} c6 {[%emt 0:00:29]} 2. d4 {[%emt 0:00:11]} d5 {[%emt 0:00:46]} 3. e5 {[%emt 0:00:09]} c5 {[%emt 0:00:33]} 4. dxc5 {[%emt 0:00:20]} e6 {[%emt 0:00:27]} 5. a3 {[%emt 0:00:14]} Bxc5 {[%emt 0:00:42]} 6. Qg4 {[%emt 0:00:18]} Ne7 {[%emt 0:00:24]} 7. Nf3 {[%emt 0:00:17]} Nf5 {[%emt 0:11:49]} 8. Bd3 {[%emt 0:07:17]} h5 {[%emt 0:01:26]} 9. Qf4 {[%emt 0:01:12]} g6 {[%emt 0:06:38]} 10. O-O {[%emt 0:13:14]} Nc6 {[%emt 0:04:13]} 11. Rd1 {[%emt 0:05:34]} Qb6 {[%emt 0:02:41]} 12. Bxf5 {[%emt 0:01:23]} gxf5 {[%emt 0:02:29]} 13. b4 {[%emt 0:01:27]} Bf8 {[%emt 0:01:21]} 14. Qh4 {[%emt 0:06:00]} Qd8 {[%emt 0:08:43]} 15. Bg5 {[%emt 0:04:29]} Be7 {[%emt 0:00:07]} 16. Bxe7 {[%emt 0:03:51]} Qxe7 {[%emt 0:00:58]} 17. Qf4 {[%emt 0:01:14]} Rg8 {[%emt 0:10:30]} 18. h3 {[%emt 0:01:07]} f6 {[%emt 0:05:48]} 19. exf6 {[%emt 0:03:12]} Qxf6 {[%emt 0:00:07]} 20. Nbd2 {[%emt 0:01:34]} Bd7 {[%emt 0:04:05]} 21. c4 {[%emt 0:01:57]} d4 {[%emt 0:02:24]} 22. g3 {[%emt 0:14:03]} O-O-O {[%emt 0:00:38]} 23. Ne4 {[%emt 0:00:51]} fxe4 {[%emt 0:03:29]} 24. Qxf6 {[%emt 0:00:08]} exf3 {[%emt 0:00:45]} 25. b5 {[%emt 0:01:34]} Na5 {[%emt 0:02:52]} 26. Qxd4 {[%emt 0:00:22]} Nb3 {[%emt 0:01:03]} 27. Qxa7 {[%emt 0:00:14]} Rdf8 {[%emt 0:02:07]} 28. b6 {[%emt 0:00:53]} 1-0